fUSD/lending_fUSD_20241011
["ID","MTS","AMOUNT","RATE_DAILY","PERIOD"]
[340138358,1728672657632,-167.35,0.00035616,2]
[340138359,1728672657644,-500.0,0.00035616,2]
[340138360,1728672657653,-500.0,0.00035616,2]
[340138361,1728672657662,-675.26,0.00035616,2]
[340138362,1728672657672,-1296.04,0.00035616,2]
[340138363,1728672657682,-696.91,0.00035616,2]
[340138364,1728672657691,-500.0,0.00035616,2]
[340138365,1728672657701,-500.0,0.00035616,2]
[340138366,1728672657710,-1009.86,0.00035616,7]
[340138367,1728672657720,-814.72,0.00035616,2]
[340138368,1728672657729,-500.0,0.00035616,2]
[340138369,1728672657738,-645.38,0.00035616,2]
[340138370,1728672657747,-500.0,0.00035616,2]
[340138371,1728672657756,-1169.35,0.00035616,2]
[340138372,1728672657765,-500.0,0.00035616,2]
[340138373,1728672657775,-552.22,0.00035616,2]
[340138374,1728672657784,-500.0,0.00035616,2]
[340138375,1728672657794,-500.0,0.00035616,2]
[340138376,1728672657803,-1368.18,0.00035616,2]
[340138377,1728672657812,-717.45,0.00035616,2]
[340138378,1728672657821,-691.16,0.00035616,2]
[340138379,1728672657831,-580.73,0.00035616,2]
[340138380,1728672657841,-500.0,0.00035616,2]
[340138381,1728672657852,-1898.53,0.00035616,2]
[340138382,1728672657864,-500.0,0.00035616,2]
[340138383,1728672657874,-500.0,0.00035616,2]
[340138384,1728672657883,-500.0,0.00035616,2]
[340138385,1728672657892,-524.02,0.00035616,2]
[340138386,1728672657901,-500.0,0.00035616,2]
[340138387,1728672657911,-500.0,0.00035616,2]
[340138388,1728672657921,-500.0,0.00035616,2]
[340138389,1728672657932,-766.81,0.00035616,2]
[340138390,1728672657941,-10818.2,0.00035616,2]
[340138391,1728672657951,-523.99499208,0.00035616,120]
[340138392,1728672657961,-500.0,0.00035616,2]
[340138393,1728672657971,-500.0,0.00035616,2]
[340138394,1728672657980,-500.0,0.00035616,2]
[340138395,1728672657990,-428.30726328,0.00035616,2]
[340138396,1728672658000,-500.0,0.00035616,2]
[340138397,1728672658010,-2805.96,0.00035616,2]
[340138398,1728672658020,-2752.12,0.00035616,2]
[340138399,1728672658029,-500.0,0.00035616,2]
[340138400,1728672658038,-200.0,0.00035616,2]
[340138401,1728672658049,-500.0,0.00035616,2]
[340138402,1728672658058,-637.27,0.00035616,2]
[340138403,1728672658068,-500.0,0.00035616,2]
[340138404,1728672658077,-696.86,0.00035616,2]
[340138405,1728672658086,-646.45,0.00035616,2]
[340138406,1728672658095,-500.0,0.00035616,2]
[340138407,1728672658105,-852.6,0.00035616,2]
[340138408,1728672658115,-500.0,0.00035616,2]
[340138409,1728672658124,-519.72,0.00035616,2]
[340138410,1728672658134,-500.0,0.00035616,2]
[340138411,1728672658143,-502.73,0.00035616,2]
[340138412,1728672658152,-987.93,0.00035616,2]
[340138413,1728672658162,-500.0,0.00035616,2]
[340138414,1728672658172,-2929.32,0.00035616,2]
[340138415,1728672658182,-624.17,0.00035616,2]
[340138416,1728672658191,-500.0,0.00035616,2]
[340138417,1728672658200,-500.0,0.00035616,2]
[340138418,1728672658210,-500.0,0.00035616,2]
[340138419,1728672658219,-456.20732947,0.00035616,2]
[340138420,1728672658228,-656.49,0.00035616,2]
[340138421,1728672658238,-500.0,0.00035616,2]
[340138422,1728672658247,-500.0,0.00035616,2]
[340138423,1728672658256,-543.71,0.00035616,2]
[340138424,1728672658267,-996.13,0.00035616,2]
[340138425,1728672658275,-577.79,0.00035616,2]
[340138426,1728672658284,-446.33615295,0.00035616,2]
[340138427,1728672658294,-500.0,0.00035616,2]
[340138428,1728672658304,-959.13,0.00035616,2]
[340138429,1728672658313,-500.0,0.00035616,2]
[340138430,1728672658327,-500.0,0.00035616,2]
[340138431,1728672658336,-1872.19,0.00035616,2]
[340138432,1728672658345,-1221.69,0.00035616,2]
[340138433,1728672658354,-517.34,0.00035616,2]
[340138434,1728672658365,-209.63365022,0.00035705,2]
[340138435,1728672658374,-1485.85,0.00035724,2]
[340138436,1728672658383,-1000.0,0.0003589,30]
[340138437,1728672658394,-1000.0,0.0003589,2]
[340138438,1728672658403,-1395.49,0.00036,30]
[340138439,1728672658412,-1172.85107872,0.00036,2]
[340138440,1728672658422,-6740.56488715,0.00036,7]
[340138441,1728672658431,-1977.51908818,0.00036,7]
[340138442,1728672658440,-704.86012654,0.00036,7]
[340138443,1728672658449,-150.0,0.00036,120]
[340138444,1728672658458,-2289.92285966,0.00036,7]
[340138445,1728672658468,-1908.50571414,0.00036,15]
[340138446,1728672658477,-150.0,0.00036,120]
[340138447,1728672658487,-1200.0,0.00036,2]
[340138448,1728672658495,-178.0,0.00036,2]
[340138449,1728672658505,-1000.0,0.00036164,30]
[340138450,1728672658514,-1000.0,0.00036164,2]
[340138451,1728672658523,-3000.0,0.000362,2]
[340138452,1728672658532,-1000.0,0.00036438,30]
[340138453,1728672658541,-1000.0,0.00036438,2]
[340138454,1728672658550,-3271.62,0.00036438,2]
[340138455,1728672658559,-519.57,0.00036438,2]
[340138456,1728672658569,-783.23,0.00036438,2]
[340138457,1728672658578,-500.0,0.00036438,2]
[340138458,1728672658587,-500.0,0.00036438,2]
[340138459,1728672658596,-500.0,0.00036438,2]
[340138460,1728672658605,-500.0,0.00036438,2]
[340138461,1728672658615,-624.93,0.00036438,2]
[340138462,1728672658625,-500.0,0.00036438,2]
[340138463,1728672658634,-500.0,0.00036438,2]
[340138464,1728672658643,-529.49899793,0.00036438,2]
[340138465,1728672658654,-500.0,0.00036438,2]
[340138466,1728672658663,-898.78,0.00036438,2]
[340138467,1728672658673,-586.53,0.00036438,2]
[340138468,1728672658683,-500.0,0.00036438,2]
[340138469,1728672658692,-500.0,0.00036438,2]
[340138470,1728672658702,-888.9,0.00036438,2]
[340138471,1728672658711,-1201.2,0.00036438,2]
[340138472,1728672658721,-1806.24,0.00036438,2]
[340138473,1728672658731,-167.35,0.00036438,2]
[340138474,1728672658741,-500.0,0.00036438,2]
[340138475,1728672658750,-500.0,0.00036438,2]
[340138476,1728672658759,-675.26,0.00036438,2]
[340138477,1728672658768,-1296.04,0.00036438,2]
[340138478,1728672658778,-696.91,0.00036438,2]
[340138479,1728672658787,-500.0,0.00036438,2]
[340138480,1728672658797,-1009.86,0.00036438,7]
[340138481,1728672658806,-542.19277852,0.00036438,2]
[340138482,1728672658815,-814.72,0.00036438,2]
[340138483,1728672658825,-500.0,0.00036438,2]
[340138484,1728672658834,-645.38,0.00036438,2]
[340138485,1728672658844,-500.0,0.00036438,2]
[340138486,1728672658854,-1169.35,0.00036438,2]
[340138487,1728672658863,-230.72098478,0.00036438,2]
[340138488,1728672658872,-552.22,0.00036438,2]
[340138489,1728672658882,-500.0,0.00036438,2]
[340138490,1728672658891,-500.0,0.00036438,2]
[340138491,1728672658900,-1368.18,0.00036438,2]
[340138492,1728672658910,-717.45,0.00036438,2]
[340138493,1728672658920,-691.16,0.00036438,2]
[340138494,1728672658930,-580.73,0.00036438,2]
[340138495,1728672658940,-500.0,0.00036438,2]
[340138496,1728672658949,-1898.53,0.00036438,2]
[340138497,1728672658959,-500.0,0.00036438,2]
[340138498,1728672658968,-500.0,0.00036438,2]
[340138499,1728672658977,-500.0,0.00036438,2]
[340138500,1728672658987,-524.02,0.00036438,2]
[340138501,1728672658996,-500.0,0.00036438,2]
[340138502,1728672659005,-500.0,0.00036438,2]
[340138503,1728672659014,-500.0,0.00036438,2]
[340138504,1728672659023,-766.81,0.00036438,2]
[340138505,1728672659032,-10818.2,0.00036438,2]
[340138506,1728672659042,-500.0,0.00036438,2]
[340138507,1728672659051,-500.0,0.00036438,2]
[340138508,1728672659060,-500.0,0.00036438,2]
[340138509,1728672659069,-500.0,0.00036438,2]
[340138510,1728672659078,-2805.96,0.00036438,2]
[340138511,1728672659088,-2752.12,0.00036438,2]
[340138512,1728672659097,-500.0,0.00036438,2]
[340138513,1728672659106,-200.0,0.00036438,2]
[340138514,1728672659115,-500.0,0.00036438,2]
[340138515,1728672659125,-637.27,0.00036438,2]
[340138516,1728672659134,-500.0,0.00036438,2]
[340138517,1728672659143,-696.86,0.00036438,2]
[340138518,1728672659152,-646.45,0.00036438,2]
[340138519,1728672659162,-579.71338074,0.00036438,2]
[340138520,1728672659171,-852.6,0.00036438,2]
[340138521,1728672659181,-500.0,0.00036438,2]
[340138522,1728672659190,-519.72,0.00036438,2]
[340138523,1728672659199,-500.0,0.00036438,2]
[340138524,1728672659208,-502.73,0.00036438,2]
[340138525,1728672659218,-987.93,0.00036438,2]
[340138526,1728672659228,-500.0,0.00036438,2]
[340138527,1728672659238,-2929.32,0.00036438,2]
[340138528,1728672659247,-624.17,0.00036438,2]
[340138529,1728672659257,-500.0,0.00036438,2]
[340138530,1728672659266,-500.0,0.00036438,2]
[340138531,1728672659275,-500.0,0.00036438,2]
[340138532,1728672659284,-656.49,0.00036438,2]
[340138533,1728672659294,-500.0,0.00036438,2]
[340138534,1728672659303,-500.0,0.00036438,2]
[340138535,1728672659312,-543.71,0.00036438,2]
[340138536,1728672659327,-996.13,0.00036438,2]
[340138537,1728672659336,-577.79,0.00036438,2]
[340138538,1728672659345,-500.0,0.00036438,2]
[340138539,1728672659354,-959.13,0.00036438,2]
[340138540,1728672659364,-500.0,0.00036438,2]
[340138541,1728672659374,-500.0,0.00036438,2]
[340138542,1728672659498,-1872.19,0.00036438,2]
[340138543,1728672659507,-1221.69,0.00036438,2]
[340138544,1728672659517,-517.34,0.00036438,2]
[340138545,1728672659526,-1000.0,0.00036712,30]
[340138546,1728672659535,-1000.0,0.00036712,2]
[340138547,1728672659545,-1000.0,0.00036986,30]
[340138548,1728672659554,-1000.0,0.00036986,2]
[340138549,1728672659563,-3386.731352,0.00037,2]
[340138550,1728672659572,-241.724,0.00037,120]
[340138551,1728672659582,-150.0,0.00037,120]
[340138552,1728672659591,-194.98498307,0.000372,103]
[340138553,1728672659600,-1000.0,0.0003726,30]
[340138554,1728672659609,-1000.0,0.0003726,2]
[340138555,1728672659618,-3271.62,0.0003726,2]
[340138556,1728672659627,-519.57,0.0003726,2]
[340138557,1728672659636,-783.23,0.0003726,2]
[340138558,1728672659645,-500.0,0.0003726,2]
[340138559,1728672659655,-500.0,0.0003726,2]
[340138560,1728672659664,-500.0,0.0003726,2]
[340138561,1728672659673,-378.26344195,0.0003726,2]
[340138562,1728672659686,-624.93,0.0003726,2]
[340138563,1728672659695,-500.0,0.0003726,2]
[340138564,1728672659704,-500.0,0.0003726,2]
[340138565,1728672659714,-500.0,0.0003726,2]
[340138566,1728672659723,-898.78,0.0003726,2]
[340138567,1728672659732,-586.53,0.0003726,2]
[340138568,1728672659742,-500.0,0.0003726,2]
[340138569,1728672659751,-500.0,0.0003726,2]
[340138570,1728672659760,-888.9,0.0003726,2]
[340138571,1728672659769,-1201.2,0.0003726,2]
[340138572,1728672659778,-1806.24,0.0003726,2]
[340138573,1728672659788,-167.35,0.0003726,2]
[340138574,1728672659798,-500.0,0.0003726,2]
[340138575,1728672659807,-500.0,0.0003726,2]
[340138576,1728672659817,-675.26,0.0003726,2]
[340138577,1728672659826,-1296.04,0.0003726,2]
[340138578,1728672659836,-696.91,0.0003726,2]
[340138579,1728672659845,-500.0,0.0003726,2]
[340138580,1728672659855,-1009.86,0.0003726,7]
[340138581,1728672659864,-814.72,0.0003726,2]
[340138582,1728672659874,-500.0,0.0003726,2]
[340138583,1728672659883,-645.38,0.0003726,2]
[340138584,1728672659893,-352.83089884,0.0003726,2]
[340138585,1728672659902,-1169.35,0.0003726,2]
[340138586,1728672659911,-552.22,0.0003726,2]
[340138587,1728672659921,-500.0,0.0003726,2]
[340138588,1728672659932,-500.0,0.0003726,2]
[340138589,1728672659942,-1368.18,0.0003726,2]
[340138590,1728672659951,-717.45,0.0003726,2]
[340138591,1728672659961,-691.16,0.0003726,2]
[340138592,1728672659970,-580.73,0.0003726,2]
[340138593,1728672659980,-500.0,0.0003726,2]
[340138594,1728672659989,-1898.53,0.0003726,2]
[340138595,1728672659999,-500.0,0.0003726,2]
[340138596,1728672660008,-500.0,0.0003726,2]
[340138597,1728672660020,-500.0,0.0003726,2]
[340138598,1728672660030,-524.02,0.0003726,2]
[340138599,1728672660039,-500.0,0.0003726,2]
[340138600,1728672660049,-500.0,0.0003726,2]
[340138601,1728672660059,-500.0,0.0003726,2]
[340138602,1728672660068,-766.81,0.0003726,2]
[340138603,1728672660078,-10818.2,0.0003726,2]
[340138604,1728672660088,-500.0,0.0003726,2]
[340138605,1728672660098,-363.06742902,0.0003726,2]
[340138606,1728672660107,-183.31470346,0.0003726,2]
[340138607,1728672660117,-500.0,0.0003726,2]
[340138608,1728672660126,-2805.96,0.0003726,2]
[340138609,1728672660136,-2752.12,0.0003726,2]
[340138610,1728672660145,-500.0,0.0003726,2]
[340138611,1728672660155,-200.0,0.0003726,2]
[340138612,1728672660165,-500.0,0.0003726,2]
[340138613,1728672660176,-637.27,0.0003726,2]
[340138614,1728672660185,-500.0,0.0003726,2]
[340138615,1728672660195,-696.86,0.0003726,2]
[340138616,1728672660204,-646.45,0.0003726,2]
[340138617,1728672660214,-852.6,0.0003726,2]
[340138618,1728672660224,-500.0,0.0003726,2]
[340138619,1728672660233,-519.72,0.0003726,2]
[340138620,1728672660243,-500.0,0.0003726,2]
[340138621,1728672660252,-502.73,0.0003726,2]
[340138622,1728672660262,-987.93,0.0003726,2]
[340138623,1728672660272,-500.0,0.0003726,2]
[340138624,1728672660282,-2929.32,0.0003726,2]
[340138625,1728672660291,-624.17,0.0003726,2]
[340138626,1728672660300,-500.0,0.0003726,2]
[340138627,1728672660309,-500.0,0.0003726,2]
[340138628,1728672660323,-500.0,0.0003726,2]
[340138629,1728672660333,-656.49,0.0003726,2]
[340138630,1728672660342,-500.0,0.0003726,2]
[340138631,1728672660352,-500.0,0.0003726,2]
[340138632,1728672660363,-543.71,0.0003726,2]
[340138633,1728672660373,-996.13,0.0003726,2]
[340138634,1728672660383,-577.79,0.0003726,2]
[340138635,1728672660392,-500.0,0.0003726,2]
[340138636,1728672660402,-959.13,0.0003726,2]
[340138637,1728672660412,-329.248855,0.0003726,2]
[340138638,1728672660422,-500.0,0.0003726,2]
[340138639,1728672660434,-1872.19,0.0003726,2]
[340138640,1728672660443,-1221.69,0.0003726,2]
[340138641,1728672660452,-517.34,0.0003726,2]
[340138642,1728672660461,-511.4,0.00037502,2]
[340138643,1728672660471,-1000.0,0.00037534,30]
[340138644,1728672660480,-1000.0,0.00037534,2]
[340138645,1728672660489,-4119.63369288,0.0003759,2]
[340138646,1728672660499,-165.09193245,0.000378,2]
[340138647,1728672660508,-1000.0,0.00037808,30]
[340138648,1728672660517,-1000.0,0.00037808,2]
[340138649,1728672660526,-53356.47495582,0.000379,2]
[340138650,1728672660535,-69966.0,0.00038,30]
[340138651,1728672660545,-5000.0,0.00038,2]
[340138652,1728672660555,-160.0,0.00038,6]
[340138653,1728672660564,-150.0,0.00038,120]
[340138654,1728672660574,-755.0,0.00038,4]
[340138655,1728672660584,-150.0,0.00038,120]
[340138656,1728672660593,-5782.46358138,0.00038,120]
[340138657,1728672660602,-1822.01501445,0.00038,120]
[340138658,1728672660612,-1250.0,0.00038,2]
[340138659,1728672660621,-1000.0,0.00038082,30]
[340138660,1728672660631,-1000.0,0.00038082,2]
[340138661,1728672660640,-3271.62,0.00038082,2]
[340138662,1728672660651,-519.57,0.00038082,2]
[340138663,1728672660660,-783.23,0.00038082,2]
[340138664,1728672660670,-500.0,0.00038082,2]
[340138665,1728672660681,-500.0,0.00038082,2]
[340138666,1728672660690,-500.0,0.00038082,2]
[340138667,1728672660699,-624.93,0.00038082,2]
[340138668,1728672660709,-500.0,0.00038082,2]
[340138669,1728672660719,-500.0,0.00038082,2]
[340138670,1728672660729,-500.0,0.00038082,2]
[340138671,1728672660738,-898.78,0.00038082,2]
[340138672,1728672660747,-586.53,0.00038082,2]
[340138673,1728672660757,-500.0,0.00038082,2]
[340138674,1728672660766,-500.0,0.00038082,2]
[340138675,1728672660775,-888.9,0.00038082,2]
[340138676,1728672660785,-1201.2,0.00038082,2]
[340138677,1728672660794,-1806.24,0.00038082,2]
[340138678,1728672660803,-167.35,0.00038082,2]
[340138679,1728672660813,-500.0,0.00038082,2]
[340138680,1728672660822,-500.0,0.00038082,2]
[340138681,1728672660831,-675.26,0.00038082,2]
[340138682,1728672660841,-1296.04,0.00038082,2]
[340138683,1728672660850,-696.91,0.00038082,2]
[340138684,1728672660859,-500.0,0.00038082,2]
[340138685,1728672660870,-1009.86,0.00038082,7]
[340138686,1728672660879,-814.72,0.00038082,2]
[340138687,1728672660889,-500.0,0.00038082,2]
[340138688,1728672660899,-645.38,0.00038082,2]
[340138689,1728672660909,-1169.35,0.00038082,2]
[340138690,1728672660919,-552.22,0.00038082,2]
[340138691,1728672660930,-500.0,0.00038082,2]
[340138692,1728672660939,-202.22715207,0.00038082,2]
[340138693,1728672660948,-1368.18,0.00038082,2]
[340138694,1728672660958,-717.45,0.00038082,2]
[340138695,1728672660968,-691.16,0.00038082,2]
[340138696,1728672660978,-580.73,0.00038082,2]
[340138697,1728672660987,-500.0,0.00038082,2]
[340138698,1728672660996,-1898.53,0.00038082,2]
[340138699,1728672661006,-500.0,0.00038082,2]
[340138700,1728672661016,-500.0,0.00038082,2]
[340138701,1728672661026,-500.0,0.00038082,2]
[340138702,1728672661035,-524.02,0.00038082,2]
[340138703,1728672661044,-500.0,0.00038082,2]
[340138704,1728672661054,-500.0,0.00038082,2]
[340138705,1728672661064,-500.0,0.00038082,2]
[340138706,1728672661073,-766.81,0.00038082,2]
[340138707,1728672661082,-10818.2,0.00038082,2]
[340138708,1728672661092,-500.0,0.00038082,2]
[340138709,1728672661102,-500.0,0.00038082,2]
[340138710,1728672661112,-2805.96,0.00038082,2]
[340138711,1728672661121,-2752.12,0.00038082,2]
[340138712,1728672661130,-500.0,0.00038082,2]
[340138713,1728672661140,-200.0,0.00038082,2]
[340138714,1728672661149,-500.0,0.00038082,2]
[340138715,1728672661159,-637.27,0.00038082,2]
[340138716,1728672661169,-500.0,0.00038082,2]
[340138717,1728672661181,-696.86,0.00038082,2]
[340138718,1728672661191,-646.45,0.00038082,2]
[340138719,1728672661201,-852.6,0.00038082,2]
[340138720,1728672661210,-500.0,0.00038082,2]
[340138721,1728672661220,-519.72,0.00038082,2]
[340138722,1728672661230,-500.0,0.00038082,2]
[340138723,1728672661240,-502.73,0.00038082,2]
[340138724,1728672661249,-987.93,0.00038082,2]
[340138725,1728672661259,-500.0,0.00038082,2]
[340138726,1728672661268,-2929.32,0.00038082,2]
[340138727,1728672661279,-624.17,0.00038082,2]
[340138728,1728672661288,-500.0,0.00038082,2]
[340138729,1728672661297,-500.0,0.00038082,2]
[340138730,1728672661307,-500.0,0.00038082,2]
[340138731,1728672661318,-656.49,0.00038082,2]
[340138732,1728672661329,-500.0,0.00038082,2]
[340138733,1728672661339,-500.0,0.00038082,2]
[340138734,1728672661348,-543.71,0.00038082,2]
[340138735,1728672661357,-996.13,0.00038082,2]
[340138736,1728672661367,-577.79,0.00038082,2]
[340138737,1728672661377,-500.0,0.00038082,2]
[340138738,1728672661387,-959.13,0.00038082,2]
[340138739,1728672661396,-500.0,0.00038082,2]
[340138740,1728672661406,-1872.19,0.00038082,2]
[340138741,1728672661415,-1221.69,0.00038082,2]
[340138742,1728672661424,-517.34,0.00038082,2]
[340138743,1728672661439,-9447.21012749,0.0003818,2]
[340138744,1728672661447,-171.0,0.000383,14]
[340138745,1728672661456,-1000.0,0.00038356,30]
[340138746,1728672661465,-1000.0,0.00038356,2]
[340138747,1728672661474,-2250.0,0.00038356,2]
[340138748,1728672661484,-172.01519734,0.000384,33]
[340138749,1728672661493,-331.0,0.000384,2]
[340138750,1728672661502,-1500.0,0.000384,2]
[340138751,1728672661511,-200.0,0.000384,2]
[340138752,1728672661520,-3303.0,0.000384,2]
[340138753,1728672661530,-1000.0,0.00038466,120]
[340138754,1728672661539,-150.0,0.00038552,120]
[340138755,1728672661548,-1000.0,0.0003863,30]
[340138756,1728672661557,-1000.0,0.0003863,2]
[340138757,1728672661566,-692.13156738,0.00038646,40]
[340138758,1728672661575,-25000.0,0.00038646,40]
[340138759,1728672661585,-1924.63776803,0.00038646,40]
[340138760,1728672661595,-163.7632855,0.00038775,10]
[340138761,1728672661604,-413.22377551,0.000389,30]
[340138762,1728672661614,-3000.0,0.000389,2]
[340138763,1728672661623,-5049.11551536,0.000389,15]
[340138764,1728672661632,-1000.0,0.00038904,30]
[340138765,1728672661641,-1000.0,0.00038904,2]
[340138766,1728672661651,-3271.62,0.00038904,30]
[340138767,1728672661660,-519.57,0.00038904,30]
[340138768,1728672661670,-783.23,0.00038904,30]
[340138769,1728672661681,-500.0,0.00038904,30]
[340138770,1728672661690,-500.0,0.00038904,30]
[340138771,1728672661699,-500.0,0.00038904,30]
[340138772,1728672661708,-624.93,0.00038904,30]
[340138773,1728672661717,-500.0,0.00038904,30]
[340138774,1728672661727,-500.0,0.00038904,30]
[340138775,1728672661736,-500.0,0.00038904,30]
[340138776,1728672661746,-898.78,0.00038904,30]
[340138777,1728672661755,-586.53,0.00038904,30]
[340138778,1728672661764,-500.0,0.00038904,30]
[340138779,1728672661774,-500.0,0.00038904,30]
[340138780,1728672661783,-888.9,0.00038904,30]
[340138781,1728672661793,-1201.2,0.00038904,30]
[340138782,1728672661803,-1806.24,0.00038904,30]
[340138783,1728672661814,-167.35,0.00038904,30]
[340138784,1728672661824,-500.0,0.00038904,30]
[340138785,1728672661833,-500.0,0.00038904,30]
[340138786,1728672661843,-675.26,0.00038904,30]
[340138787,1728672661853,-1296.04,0.00038904,7]
[340138788,1728672661863,-696.91,0.00038904,30]
[340138789,1728672661873,-500.0,0.00038904,30]
[340138790,1728672661882,-1009.86,0.00038904,7]
[340138791,1728672661891,-814.72,0.00038904,30]
[340138792,1728672661901,-500.0,0.00038904,30]
[340138793,1728672661913,-645.38,0.00038904,30]
[340138794,1728672661922,-1169.35,0.00038904,30]
[340138795,1728672661933,-552.22,0.00038904,30]
[340138796,1728672661943,-500.0,0.00038904,30]
[340138797,1728672661953,-1368.18,0.00038904,30]
[340138798,1728672661964,-717.45,0.00038904,30]
[340138799,1728672661974,-691.16,0.00038904,30]
[340138800,1728672661984,-580.73,0.00038904,30]
[340138801,1728672661993,-388.84790494,0.00038904,30]
[340138802,1728672662002,-1898.53,0.00038904,7]
[340138803,1728672662011,-500.0,0.00038904,30]
[340138804,1728672662022,-500.0,0.00038904,30]
[340138805,1728672662031,-500.0,0.00038904,30]
[340138806,1728672662041,-524.02,0.00038904,30]
[340138807,1728672662051,-500.0,0.00038904,30]
[340138808,1728672662060,-500.0,0.00038904,30]
[340138809,1728672662069,-500.0,0.00038904,30]
[340138810,1728672662078,-766.81,0.00038904,30]
[340138811,1728672662199,-10818.2,0.00038904,30]
[340138812,1728672662220,-500.0,0.00038904,30]
[340138813,1728672662231,-500.0,0.00038904,30]
[340138814,1728672662242,-2805.96,0.00038904,30]
[340138815,1728672662252,-2752.12,0.00038904,30]
[340138816,1728672662262,-500.0,0.00038904,30]
[340138817,1728672662272,-200.0,0.00038904,7]
[340138818,1728672662283,-500.0,0.00038904,30]
[340138819,1728672662293,-637.27,0.00038904,30]
[340138820,1728672662303,-500.0,0.00038904,30]
[340138821,1728672662314,-696.86,0.00038904,30]
[340138822,1728672662327,-646.45,0.00038904,30]
[340138823,1728672662337,-852.6,0.00038904,30]
[340138824,1728672662346,-500.0,0.00038904,30]
[340138825,1728672662360,-519.72,0.00038904,30]
[340138826,1728672662370,-500.0,0.00038904,30]
[340138827,1728672662380,-502.73,0.00038904,30]
[340138828,1728672662390,-987.93,0.00038904,30]
[340138829,1728672662401,-500.0,0.00038904,30]
[340138830,1728672662411,-2929.32,0.00038904,30]
[340138831,1728672662421,-624.17,0.00038904,30]
[340138832,1728672662439,-500.0,0.00038904,30]
[340138833,1728672662449,-500.0,0.00038904,30]
[340138834,1728672662459,-500.0,0.00038904,30]
[340138835,1728672662469,-656.49,0.00038904,14]
[340138836,1728672662479,-500.0,0.00038904,30]
[340138837,1728672662489,-500.0,0.00038904,30]
[340138838,1728672662499,-543.71,0.00038904,30]
[340138839,1728672662509,-996.13,0.00038904,30]
[340138840,1728672662519,-577.79,0.00038904,30]
[340138841,1728672662529,-500.0,0.00038904,30]
[340138842,1728672662539,-959.13,0.00038904,30]
[340138843,1728672662549,-500.0,0.00038904,30]
[340138844,1728672662559,-1872.19,0.00038904,30]
[340138845,1728672662568,-1221.69,0.00038904,30]
[340138846,1728672662579,-46903.12699111,0.0003897,10]
[340138847,1728672662589,-9671.0,0.00039,2]
[340138848,1728672662599,-185.09249952,0.00039,30]
[340138849,1728672662609,-425.88,0.00039,120]
[340138850,1728672662618,-16855.0,0.00039,30]
[340138851,1728672662628,-5020.0,0.00039,120]
[340138852,1728672662638,-150.0,0.00039,120]
[340138853,1728672662648,-217.53,0.00039,2]
[340138854,1728672662658,-217.53,0.00039,2]
[340138855,1728672662668,-217.53,0.00039,2]
[340138856,1728672662680,-217.53,0.00039,2]
[340138857,1728672662690,-217.53,0.00039,2]